bitfinex/quotes_ETHUSD_20240603
["timestamp","ask_amount","ask_price","bid_price","bid_amount"]
[1717433857931,0.83539942,3768.1,3767.9,1.32126577]
[1717433858091,0.28256335,3768.0,3767.9,1.32126577]
[1717433858289,0.55015171,3768.2,3767.9,1.32126577]
[1717433858504,0.83534758,3768.1,3767.9,1.32126577]
[1717433858706,0.28254688,3768.0,3767.9,1.32126577]
[1717433859011,0.83269859,3768.1,3767.9,1.32126577]
[1717433859212,0.28254688,3768.0,3767.9,1.32126577]
[1717433859443,0.28254688,3768.1,3767.4,11.70229]
[1717433859652,0.28254688,3768.0,3767.5,1.32126577]
[1717433859954,0.55015171,3768.1,3767.5,1.32126577]
[1717433860121,0.8352048,3768.0,3767.5,1.32126577]
[1717433860711,0.2825015,3767.9,3767.5,1.32126577]
[1717433860907,0.2825015,3767.8,3767.5,1.32126577]
[1717433861332,0.55015171,3768.0,3767.5,1.32126577]
[1717433861550,0.83488987,3767.9,3767.5,1.32126577]
[1717433861848,0.28237562,3767.8,3767.5,1.32126577]
[1717433862214,0.55015171,3768.0,3767.5,1.32126577]
[1717433862413,0.83486455,3767.9,3767.5,1.32126577]
[1717433862650,0.28236717,3767.8,3767.5,1.32126577]
[1717433862856,0.55015171,3768.0,3767.5,1.32126577]
[1717433863016,0.83489762,3767.9,3767.5,1.32126577]
[1717433863217,0.28237832,3767.8,3767.5,1.32126577]
[1717433863416,0.55015171,3768.0,3767.5,1.32126577]
[1717433863655,0.83494316,3767.9,3767.5,1.32126577]
[1717433863962,0.28239411,3767.8,3767.5,1.32126577]
[1717433864250,0.55015171,3768.0,3767.5,1.32126577]
[1717433864425,0.83492614,3767.9,3767.5,1.32126577]
[1717433864614,0.28238787,3767.8,3767.5,1.32126577]
[1717433864814,0.55015171,3768.0,3767.5,1.32126577]
[1717433865015,0.83507358,3767.9,3767.5,1.32126577]
[1717433865222,0.28243771,3767.8,3767.5,1.32126577]
[1717433865463,0.55015171,3768.0,3767.7,2.65413]
[1717433865637,2.67430506,3768.4,3767.8,1.32126577]
[1717433865638,0.28245037,3767.9,3767.8,1.32126577]
[1717433865948,0.55015171,3768.3,3767.8,1.32126577]
[1717433866120,0.2824652,3768.2,3767.8,1.32126577]
[1717433866849,0.83261691,3768.4,3767.8,1.32126577]
[1717433867056,0.83521094,3768.3,3767.8,1.32126577]
[1717433868130,0.83521094,3768.3,3767.9,2.65398]
[1717433868131,0.28247463,3768.3,3767.9,2.65398]
[1717433868453,0.55015171,3768.5,3768.0,1.32126577]
[1717433868656,0.83536457,3768.4,3768.0,1.32126577]
[1717433869237,0.28252518,3768.3,3768.0,1.32126577]
[1717433869415,0.55015171,3768.5,3768.0,1.32126577]
[1717433869615,0.83550718,3768.4,3768.0,1.32126577]
[1717433869931,0.28256815,3768.3,3768.0,1.32126577]
[1717433870320,0.55015171,3768.5,3768.0,1.32126577]
[1717433870750,0.28265523,3768.4,3768.1,2.65385]
[1717433870934,0.82261457,3768.7,3768.1,2.65385]
[1717433870935,0.55015171,3768.7,3768.2,1.32126577]
[1717433871121,0.28267425,3768.6,3768.2,1.32126577]
[1717433871322,0.28273316,3768.5,3768.2,1.32126577]
[1717433871653,0.83601518,3768.4,3768.2,1.32126577]
[1717433872016,0.55015171,3768.6,3768.3,0.723]
[1717433872237,1.38618457,3768.5,3768.4,1.32126577]
[1717433872446,0.83603286,3768.5,3768.4,1.32126577]
[1717433872818,0.28274847,3768.5,3768.4,1.32126577]
[1717433873442,0.83624559,3768.5,3768.4,1.32126577]
[1717433874033,0.83624559,3768.5,3768.4,1.79107735]
[1717433874233,0.28274847,3768.5,3768.4,1.79107735]
[1717433874461,0.55015171,3768.8,3768.4,1.79107735]
[1717433874661,0.83610464,3768.7,3768.5,0.723]
[1717433874864,0.55015171,3768.8,3768.6,1.32126577]
[1717433875032,0.55015171,3768.7,3768.6,1.32126577]
[1717433875240,1.38622268,3768.7,3768.6,1.32126577]
[1717433875851,1.38632231,3768.7,3768.6,1.32126577]
[1717433877920,0.8361706,3768.7,3768.6,1.32126577]
[1717433878583,0.83641335,3768.7,3768.6,1.32126577]
[1717433879367,1.65902792,3768.7,3768.6,1.32126577]
[1717433879520,0.83641335,3768.7,3768.6,1.32126577]
[1717433882463,0.83641335,3768.7,3768.5,0.723]
[1717433882625,1.38693873,3768.6,3768.5,0.723]
[1717433882957,0.83641335,3768.6,3768.1,2.65385]
[1717433883163,1.38696529,3768.5,3768.3,0.723]
[1717433883346,0.55055194,3768.5,3768.4,1.32126577]
[1717433883566,0.55055194,3768.5,3767.8,3.33188634]
[1717433883567,1.38709789,3768.5,3767.8,3.33188634]
[1717433883774,0.83654595,3768.4,3767.9,2.6269844]
[1717433884099,0.55055194,3768.5,3767.9,2.6269844]
[1717433884100,0.28292287,3768.3,3767.9,2.6269844]
[1717433884250,0.55055194,3768.5,3768.2,0.723]
[1717433884451,0.836568,3768.4,3768.3,1.32126577]
[1717433884679,0.836568,3768.4,3768.3,2.04426577]
[1717433884948,0.28292995,3768.4,3768.3,2.04426577]
[1717433885973,0.83659378,3768.4,3768.3,1.32126577]
[1717433886145,0.83659378,3768.4,3768.3,2.04426577]
[1717433886482,0.28292995,3768.4,3768.3,1.32126577]
[1717433886689,0.28292995,3768.4,3768.3,2.04426577]
[1717433887468,0.83669421,3768.4,3768.3,2.04426577]
[1717433887863,1.38724615,3768.4,3768.3,1.32126577]
[1717433888047,1.38724615,3768.4,3768.3,2.04426577]
[1717433888581,1.38741654,3768.4,3768.3,2.04426577]
[1717433888790,1.38741654,3768.4,3768.3,1.32126577]
[1717433888992,0.28303077,3768.4,3768.3,1.32126577]
[1717433889290,0.83688755,3768.4,3768.3,2.04426577]
[1717433889496,1.38743949,3768.4,3768.3,2.04426577]
[1717433890855,0.83688755,3768.4,3768.3,2.04426577]
[1717433891056,1.38743949,3768.4,3768.3,2.04426577]
[1717433892100,1.38743949,3768.4,3768.3,2.51407835]
[1717433892257,0.83688755,3768.4,3768.3,2.51407835]
[1717433892457,0.28303077,3768.4,3768.3,2.51407835]
[1717433893680,0.28303077,3768.4,3768.3,4.91307835]
[1717433893874,0.55055194,3768.7,3768.3,4.91307835]
[1717433894205,0.83747972,3768.6,3768.5,0.723]
[1717433894359,1.38811432,3768.6,3768.5,2.04426577]
[1717433894562,0.83756238,3768.6,3768.5,2.04426577]
[1717433894867,0.83756238,3768.6,3768.5,2.80308613]
[1717433895914,0.28325698,3768.6,3768.5,2.80308613]
[1717433896605,0.55055194,3768.9,3768.6,2.6535]
[1717433896806,0.28328029,3768.8,3768.7,2.04426577]
[1717433897028,0.83766187,3768.8,3768.7,2.63905517]
[1717433897163,0.28328029,3768.8,3768.7,2.63905517]
[1717433898457,0.28328029,3768.8,3768.7,5.00165517]
[1717433898718,0.55055194,3769.0,3768.8,2.65336]
[1717433899025,0.55055194,3769.0,3768.9,2.04426577]
[1717433899299,0.83754336,3769.0,3768.9,2.57350729]
[1717433900219,0.28324467,3769.0,3768.9,2.57350729]
[1717433900367,0.55055194,3769.2,3768.9,2.57350729]
[1717433900570,0.28315289,3769.1,3768.9,1.85050729]
[1717433900826,0.28315289,3769.1,3769.0,0.50986567]
[1717433900959,0.28315425,3769.1,3769.0,2.55413144]
[1717433901387,0.55055194,3769.3,3769.0,2.55413144]
[1717433901599,0.83713553,3769.2,3769.1,1.32126577]
[1717433901804,0.83713553,3769.2,3769.1,2.04426577]
[1717433902301,0.28310227,3769.2,3769.1,2.04426577]
[1717433902922,0.28306486,3769.2,3769.1,2.04426577]
[1717433905009,0.55055194,3769.4,3769.1,4.43196577]
[1717433905364,0.28299309,3769.3,3769.1,3.70896577]
[1717433905517,0.55055194,3769.4,3769.2,0.723]
[1717433905716,0.55055194,3769.4,3769.3,1.32126577]
[1717433905942,1.38725417,3769.4,3769.3,1.32126577]
[1717433907424,0.83670223,3769.4,3769.3,1.32126577]
[1717433908032,1.38723319,3769.4,3769.3,1.32126577]
[1717433908332,1.38723319,3769.4,3769.3,2.04426577]
[1717433909385,0.83668125,3769.4,3769.3,2.04426577]
[1717433909534,0.28294752,3769.4,3769.3,2.04426577]
[1717433909738,0.83677628,3769.4,3769.3,2.04426577]
[1717433910674,0.83677628,3769.4,3769.3,1.32126577]
[1717433910833,0.83683826,3769.4,3769.3,2.04426577]
[1717433911456,0.8369762,3769.4,3769.3,2.04426577]
[1717433912070,0.8369762,3769.4,3769.3,5.21800391]
[1717433912246,0.28294752,3769.4,3769.3,7.61380391]
[1717433912470,1.5793959,3770.0,3769.6,2.6528]
[1717433912471,0.55055194,3769.8,3769.6,2.6528]
[1717433912643,0.55055194,3769.8,3769.7,2.30954577]
[1717433912840,0.28313603,3769.8,3769.7,2.30954577]
[1717433913061,0.28313603,3769.8,3769.7,1.58654577]
[1717433913270,0.28313603,3769.8,3769.7,2.30954577]
[1717433913541,0.55055194,3770.0,3769.7,2.30954577]
[1717433913769,0.55055194,3770.0,3769.9,0.723]
[1717433913944,0.55055194,3770.0,3769.9,2.04426577]
[1717433914643,1.38778068,3770.0,3769.9,2.04426577]
[1717433918270,0.83722874,3770.0,3769.9,2.04426577]
[1717433919077,1.38778068,3770.0,3769.9,2.04426577]
[1717433919276,0.83722874,3770.0,3769.9,2.04426577]
[1717433919481,1.38778068,3770.0,3769.7,0.723]
[1717433919779,1.38778068,3769.9,3769.7,2.04426577]
[1717433919980,1.38778068,3769.8,3769.7,2.04426577]
[1717433920278,1.38778068,3769.8,3769.3,2.65301]
[1717433920435,1.5793959,3770.1,3769.5,0.723]
[1717433920436,3.85908068,3769.7,3769.5,0.723]
[1717433920637,3.85908068,3769.7,3769.0,9.97322]
[1717433920973,0.83722874,3769.6,3769.5,0.723]
[1717433921698,1.38794916,3769.6,3769.5,0.723]
[1717433922002,0.83722874,3769.6,3769.5,4.69713577]
[1717433922165,0.28312087,3769.6,3769.5,4.69713577]
[1717433922347,1.58027049,3770.0,3769.5,5.39762935]
[1717433922348,0.55072042,3770.0,3769.5,5.39762935]
[1717433922545,0.28295948,3769.9,3769.6,1.32126577]
[1717433922851,0.55072042,3770.0,3769.8,0.723]
[1717433923083,0.55072042,3770.0,3769.9,1.32126577]
[1717433923261,1.38744623,3770.0,3769.9,1.32126577]
[1717433923586,0.83672581,3770.0,3769.9,1.32126577]
[1717433923762,1.65934038,3770.0,3769.9,1.32126577]
[1717433923962,0.83672581,3770.0,3769.9,1.32126577]
[1717433924686,0.83628218,3770.0,3769.9,1.32126577]
[1717433925151,1.40962005,3770.0,3769.9,1.32126577]
[1717433925490,0.83628218,3770.0,3769.9,1.32126577]
[1717433925846,0.28280505,3770.0,3769.9,1.32126577]
[1717433926053,0.55045469,3770.2,3769.9,1.79095535]
[1717433926356,0.28275222,3770.1,3769.9,1.79095535]
[1717433926556,0.55045469,3770.3,3770.0,0.723]
[1717433926771,0.83610467,3770.2,3770.1,1.32126577]
[1717433926973,0.83610467,3770.2,3770.1,5.1410643]
[1717433927177,0.28273858,3770.2,3770.1,5.1410643]
[1717433927384,0.55045469,3770.4,3770.1,5.1410643]
[1717433927648,0.55045469,3770.4,3770.3,0.723]
[1717433927861,0.8359961,3770.4,3770.3,2.04426577]
[1717433928359,0.83588252,3770.4,3770.3,2.04426577]
[1717433928593,0.28269853,3770.4,3770.3,2.04426577]
[1717433929150,0.28269853,3770.5,3770.3,2.04426577]
[1717433929355,0.55045469,3770.6,3770.4,2.04426577]
[1717433929603,0.28265,3770.5,3770.4,4.69647577]
[1717433929788,0.55045469,3770.7,3770.4,4.69647577]
[1717433929953,1.58027049,3770.8,3770.4,4.69647577]
[1717433929954,0.28264203,3770.6,3770.4,3.97347577]
[1717433930294,0.55045469,3770.8,3770.5,0.723]
[1717433930506,0.55045469,3770.8,3770.7,0.723]
[1717433930655,0.55045469,3771.0,3770.7,2.04426577]
[1717433930966,0.28261124,3770.9,3770.8,1.32126577]
[1717433931165,0.55045469,3771.1,3770.8,2.04426577]
[1717433931166,0.28261124,3771.0,3770.8,2.04426577]
[1717433931366,0.28253982,3770.9,3770.8,2.04426577]
[1717433931665,0.28253982,3770.9,3770.8,1.32126577]
[1717433931865,0.60612778,3770.9,3770.8,1.32126577]
[1717433932581,1.15908265,3770.9,3770.8,1.32126577]
[1717433932763,0.83549469,3770.9,3770.8,1.32126577]
[1717433932968,1.38553117,3770.9,3770.8,1.32126577]
[1717433933191,0.83549469,3770.9,3770.8,1.32126577]
[1717433933792,0.28253982,3770.9,3770.8,1.32126577]
[1717433934755,0.83549469,3770.9,3770.8,1.32126577]
[1717433935155,0.28253982,3770.9,3770.8,1.32126577]
[1717433936604,0.66138144,3770.9,3770.8,1.32126577]
[1717433936771,1.76437279,3770.9,3770.8,1.32126577]
[1717433936975,1.21433631,3770.9,3770.8,1.32126577]
[1717433937396,1.21433631,3770.9,3770.6,0.723]
[1717433937567,1.38551899,3770.8,3770.1,7.32]
[1717433937895,1.38551899,3770.8,3770.5,0.723]
[1717433937896,1.38553034,3770.7,3770.5,0.723]
[1717433938098,0.83550604,3770.6,3770.5,2.04426577]
[1717433938298,0.83553347,3770.6,3770.5,2.04426577]
[1717433938804,0.83553347,3770.6,3770.3,0.723]
[1717433938805,1.38555777,3770.6,3770.3,0.723]
[1717433939002,4.38487814,3770.8,3770.3,0.723]
[1717433939003,1.38551513,3770.5,3770.3,0.723]
[1717433939312,0.83560478,3770.4,3770.3,0.723]
[1717433939460,0.83562705,3770.4,3770.3,0.723]
[1717433939953,0.28253982,3770.4,3770.3,0.723]
[1717433941276,0.8358299,3770.4,3770.3,0.723]
[1717433941478,0.8358734,3770.4,3769.7,5.3155]
[1717433941691,0.28253982,3770.3,3770.1,0.723]
[1717433941888,0.54998166,3770.4,3770.2,1.32126577]
[1717433942096,1.38602429,3770.3,3770.2,1.32126577]
[1717433942406,0.28271934,3770.3,3770.2,2.04426577]
[1717433942968,0.83613365,3770.3,3770.2,2.04426577]
[1717433943702,0.28271934,3770.3,3770.2,2.04426577]
[1717433943906,0.54998166,3770.6,3770.2,5.16630035]
[1717433944087,0.83629217,3770.5,3770.4,0.723]
[1717433944292,0.28279732,3770.5,3770.4,2.04426577]
[1717433944487,0.54998166,3770.8,3770.4,2.04426577]
[1717433944701,0.28280831,3770.7,3770.5,1.32126577]
[1717433944930,0.54998166,3770.9,3770.7,0.723]
[1717433945218,0.82261457,3771.0,3770.8,1.32126577]
[1717433945720,0.82261457,3771.0,3770.9,0.723]
[1717433945925,0.82261457,3771.0,3770.9,2.04426577]
[1717433946094,0.83663364,3771.0,3770.9,2.04426577]
[1717433946519,0.55075422,3771.2,3770.9,2.04426577]
[1717433946713,0.83658611,3771.1,3771.0,3.72166577]
[1717433946888,0.28288408,3771.1,3771.0,4.44466577]
[1717433947089,0.55075422,3771.3,3771.0,4.44466577]
[1717433947327,0.55075422,3771.3,3771.2,0.723]
[1717433947637,0.28285205,3771.3,3771.2,2.04426577]
[1717433948125,0.55075422,3771.5,3771.2,2.04426577]
[1717433948329,0.2827423,3771.4,3771.3,1.32126577]
[1717433948528,0.44835341,3771.4,3770.7,2.65199]
[1717433948713,0.2827423,3771.3,3771.0,0.723]
[1717433948891,0.2827423,3771.3,3771.1,1.32126577]
[1717433949091,0.2827423,3771.2,3771.1,1.32126577]
[1717433950523,0.83621125,3771.2,3771.1,1.32126577]
[1717433950708,0.2827423,3771.2,3771.1,1.32126577]
[1717433951123,0.2827423,3771.2,3770.4,2.4391]
[1717433951124,0.46491452,3771.2,3770.4,2.4391]
[1717433951328,0.2827423,3771.1,3770.8,0.723]
[1717433951542,0.83619281,3771.0,3770.9,1.32126577]
[1717433952355,1.07536619,3771.0,3770.9,1.32126577]
[1717433952492,1.62612041,3771.0,3770.9,1.32126577]
[1717433952896,1.07536619,3771.0,3770.9,1.32126577]
[1717433954532,1.07536619,3771.0,3770.9,2.04426577]
[1717433955224,1.07536619,3771.0,3770.9,1.32126577]
[1717433956242,1.64856975,3771.0,3770.9,1.32126577]
[1717433956911,1.07536619,3771.0,3770.9,1.32126577]
[1717433957223,1.40939612,3771.0,3770.9,2.04426577]
[1717433957725,2.23201069,3771.0,3770.9,2.04426577]
[1717433957922,1.40939612,3771.0,3770.9,2.04426577]
[1717433958241,2.23201069,3771.0,3770.9,2.04426577]
[1717433959959,2.23201069,3771.0,3770.3,2.65224]
[1717433960257,0.55068703,3770.7,3770.4,1.32126577]
[1717433960539,0.2827423,3770.6,3770.4,1.32126577]
[1717433960714,0.55068703,3770.7,3770.6,0.723]
[1717433960913,0.83649484,3770.7,3770.6,2.04426577]
[1717433961415,1.38718198,3770.7,3770.6,2.04426577]
[1717433962141,0.55068703,3770.7,3770.6,2.04426577]
[1717433962338,0.83641079,3770.7,3770.6,2.04426577]
[1717433962512,1.38709709,3770.7,3770.6,2.04426577]
[1717433963539,0.5506863,3770.7,3770.6,2.04426577]
[1717433963707,1.38722917,3770.7,3770.6,2.04426577]
[1717433965906,0.83654287,3770.7,3770.6,2.04426577]
[1717433966109,1.65915744,3770.7,3770.6,2.04426577]
[1717433966317,2.20567116,3770.7,3770.6,1.32126577]
[1717433966757,3.78544174,3770.7,3770.6,1.32126577]
[1717433967047,1.66286656,3770.7,3770.6,1.32126577]
[1717433967552,0.83654287,3770.7,3770.6,1.32126577]
[1717433969828,0.83717879,3770.7,3770.6,1.32126577]
[1717433970156,1.63362355,3770.7,3770.2,2.65237]
[1717433970353,1.66402132,3770.6,3770.4,0.723]
[1717433970656,0.82684253,3770.6,3770.5,1.32126577]
[1717433970864,1.63400193,3770.6,3770.5,1.32126577]
[1717433971412,2.73102776,3770.6,3770.5,1.32126577]
[1717433972957,1.63420833,3770.6,3770.5,1.32126577]
[1717433973116,2.73102776,3770.6,3770.5,1.32126577]
[1717433974119,1.63420833,3770.6,3770.5,1.32126577]
[1717433974319,0.8376211,3770.6,3770.5,1.79092935]
[1717433974641,1.66507989,3770.6,3770.5,1.79092935]
[1717433974822,0.8376211,3770.6,3770.5,1.79092935]
[1717433976063,0.83792106,3770.6,3770.5,1.79092935]
[1717433976954,1.38958075,3770.6,3770.5,1.79092935]
[1717433977266,1.38958075,3770.6,3770.5,4.15162935]
[1717433977559,0.28331802,3770.6,3770.5,7.15162935]
[1717433977759,0.55165969,3770.8,3770.6,2.65209]
[1717433977987,0.55165969,3770.9,3770.7,3.09693771]
[1717433978123,0.55165969,3770.9,3770.8,4.69621577]
[1717433978324,0.83786836,3770.9,3770.8,4.69621577]
[1717433978533,0.28329108,3770.9,3770.8,4.69621577]
[1717433978730,0.55165969,3771.1,3770.8,4.69621577]
[1717433978931,1.38969042,3771.0,3770.9,0.30390882]
[1717433979132,1.38969042,3771.0,3770.9,2.04426577]
[1717433979429,0.83803073,3771.0,3770.9,2.04426577]
[1717433979825,1.38969042,3771.0,3770.9,1.32126577]
[1717433980026,0.83803073,3771.0,3770.9,2.04426577]
[1717433980248,1.3897235,3771.0,3770.9,2.04426577]
[1717433980531,0.83803073,3771.0,3770.9,2.04426577]
[1717433980730,0.83803073,3771.0,3770.9,2.51388735]
[1717433981127,0.28337184,3771.0,3770.9,2.51388735]
[1717433981326,0.83798708,3771.0,3770.9,2.51388735]
[1717433981541,0.83798708,3771.0,3770.9,2.04426577]
[1717433981766,1.38969042,3771.0,3770.9,2.04426577]
[1717433982430,1.38957376,3771.0,3770.9,2.04426577]
[1717433983632,0.83787042,3771.0,3770.9,2.04426577]
[1717433983865,0.28332305,3771.0,3770.9,2.04426577]
[1717433984066,0.28332305,3771.0,3770.9,2.51388735]
[1717433984434,0.55170334,3771.2,3770.9,2.51388735]
[1717433984635,0.83776779,3771.1,3771.0,1.32126577]
[1717433984866,0.83776779,3771.1,3771.0,2.04426577]
[1717433985605,0.55170334,3771.3,3771.0,2.04426577]
[1717433985805,0.28328601,3771.2,3771.1,0.51658374]
[1717433986010,0.28328601,3771.2,3771.1,2.56084951]
[1717433987081,0.83770895,3771.2,3771.1,2.56084951]
[1717433987377,1.38941229,3771.2,3771.1,2.04426577]
[1717433988613,1.38941229,3771.2,3771.1,1.32126577]
[1717433988769,0.83770895,3771.2,3771.1,2.04426577]
[1717433998311,1.38914902,3771.2,3771.1,2.04426577]
[1717434000013,1.38914902,3771.2,3771.1,1.32126577]
[1717434000208,1.38914902,3771.2,3771.1,2.03393577]
[1717434000417,1.38914902,3771.2,3771.1,1.31093577]
[1717434000582,0.83770895,3771.2,3771.1,1.31093577]
[1717434001014,1.63447923,3771.2,3771.1,1.31093577]
[1717434001574,1.63447923,3771.2,3770.6,3.0]
[1717434001575,2.43835175,3771.2,3770.6,3.0]
[1717434001779,1.66476844,3771.1,3770.9,0.723]
[1717434001976,0.82705949,3771.1,3771.0,1.32126577]
[1717434002190,1.66463588,3771.1,3771.0,1.32126577]
[1717434002602,0.83757639,3771.1,3771.0,1.32126577]
[1717434002777,1.66463588,3771.1,3771.0,2.03283835]
[1717434002977,1.38900091,3771.1,3771.0,2.03283835]
[1717434003177,0.83757639,3771.1,3771.0,2.03283835]
[1717434003674,0.2832281,3771.1,3771.0,2.03283835]
[1717434003912,0.55142452,3771.4,3771.0,4.68462835]
[1717434004098,1.92387892,3771.6,3771.1,0.78271284]
[1717434004099,0.28322408,3771.3,3771.1,0.78271284]
[1717434004298,0.55142452,3771.5,3771.2,2.04426577]
[1717434004505,0.55142452,3771.3,3771.2,1.32126577]
[1717434004704,1.3889674,3771.3,3771.2,1.32126577]
[1717434004883,0.83754288,3771.3,3770.6,5.65204]
[1717434005074,4.04059311,3771.2,3770.7,1.32126577]
[1717434005279,0.55136023,3770.9,3770.7,1.32126577]
[1717434005520,1.41075504,3770.8,3770.7,1.32126577]
[1717434005717,2.23781453,3770.8,3770.7,1.32126577]
[1717434005919,2.20737105,3770.8,3770.7,1.32126577]
[1717434006120,3.78690455,3770.8,3770.7,1.32126577]
[1717434006418,4.6599647,3770.8,3769.9,2.65257]
[1717434006579,3.78690455,3770.8,3770.7,0.723]
[1717434006781,0.57321216,3770.7,3770.0,1.32126577]
[1717434007023,2.73097832,3770.8,3770.0,1.32126577]
[1717434007024,0.82700198,3770.4,3770.3,0.723]
[1717434007182,2.23775702,3770.4,3770.3,2.04426577]
[1717434007379,1.66454486,3770.4,3770.3,2.04426577]
[1717434007711,1.68754127,3770.4,3769.8,7.32]
[1717434007908,1.68754127,3770.4,3769.2,1.734]
[1717434007909,0.82686742,3770.1,3769.2,1.734]
[1717434008079,0.55121692,3769.8,3769.3,1.32126577]
[1717434008284,0.83754288,3769.7,3769.3,1.32126577]
[1717434008508,0.28320571,3769.6,3769.3,1.32126577]
[1717434008698,0.55121692,3769.7,3769.4,0.57084058]
[1717434008899,0.28309209,3769.6,3769.5,1.32126577]
[1717434009298,0.83709753,3769.6,3768.7,9.97342]
[1717434009538,0.83709753,3769.6,3768.8,1.32126577]
[1717434009539,0.55075126,3769.4,3768.8,1.32126577]
[1717434009702,0.83709753,3769.3,3768.8,1.32126577]
[1717434009919,0.55075126,3769.4,3768.8,1.32126577]
[1717434009920,0.55075126,3769.4,3768.8,5.65180435]
[1717434010111,0.28297061,3769.3,3768.8,3.91780435]
[1717434010413,0.28282499,3769.2,3768.8,1.32126577]
[1717434010610,0.55075126,3769.3,3768.8,1.32126577]
[1717434010923,2.4936,3769.4,3768.8,1.32126577]
[1717434010924,1.38701515,3769.2,3768.8,1.32126577]
[1717434011127,0.83626389,3769.1,3768.8,1.71873435]
[1717434011299,0.55075126,3769.5,3769.1,2.65315]
[1717434011497,1.37747594,3769.7,3769.4,3.97414577]
[1717434011813,0.55075126,3770.2,3769.7,2.65271]
[1717434012017,0.55075126,3770.4,3769.8,3.05526577]
[1717434012220,0.28271927,3770.3,3769.8,3.62606335]
[1717434012526,2.4679,3770.9,3769.8,3.62606335]
[1717434012527,0.55075126,3770.5,3769.8,3.62606335]
[1717434012885,0.55075126,3770.5,3769.9,2.65255]
[1717434013091,0.55075126,3770.5,3770.0,1.32126577]
[1717434017530,0.55075126,3770.5,3770.1,1.32126577]
[1717434017849,0.55075126,3770.9,3770.4,2.65219]
[1717434017995,0.55075126,3771.1,3770.5,1.32126577]
[1717434018196,0.55075126,3771.1,3770.6,2.65204]
[1717434018197,0.83554042,3771.0,3770.6,2.65204]
[1717434018539,0.82686742,3771.3,3770.6,2.65204]
[1717434018540,0.55075126,3771.3,3770.7,1.32126577]
[1717434018835,0.83570286,3771.2,3770.7,1.32126577]
[1717434019037,0.83567142,3771.1,3770.7,1.32126577]
[1717434019211,0.55075126,3771.2,3770.7,1.32126577]
[1717434019408,0.55075126,3771.0,3770.3,3.0]
[1717434019638,1.3864156,3770.9,3770.4,1.32126577]
[1717434019935,0.55075126,3770.7,3770.4,1.32126577]
[1717434020095,0.28268039,3770.6,3770.4,1.32126577]
[1717434020295,0.55075126,3770.7,3770.4,1.32126577]
[1717434020506,0.28267094,3770.6,3770.4,1.32126577]
[1717434020711,0.28266535,3770.5,3770.4,1.32126577]
[1717434020940,0.83558203,3770.5,3770.1,7.32]
[1717434021110,5.796743,3770.7,3770.2,1.32126577]
[1717434021111,0.54971693,3770.3,3770.2,1.32126577]
[1717434021309,1.38529896,3770.3,3770.2,1.32126577]
[1717434021944,0.83237554,3770.4,3770.2,1.32126577]
[1717434022239,0.28261089,3770.3,3770.2,1.32126577]
[1717434022594,0.54971693,3770.5,3770.2,1.32126577]
[1717434022791,0.83542335,3770.4,3770.2,1.32126577]
[1717434023030,0.54971693,3770.6,3770.3,3.05526577]
[1717434023202,1.5782797,3771.1,3770.4,0.30552658]
[1717434023203,0.54971693,3770.9,3770.4,0.30552658]
[1717434023403,0.54971693,3771.1,3770.5,1.32126577]
[1717434023607,0.28261975,3771.0,3770.5,1.32126577]
[1717434023906,0.54971693,3771.1,3770.5,1.32126577]
[1717434024330,0.28260413,3771.0,3770.5,1.32126577]
[1717434024549,0.54971693,3771.2,3770.5,1.32126577]
[1717434024700,0.83551743,3771.1,3770.5,1.32126577]
[1717434025020,0.54971693,3771.2,3770.5,1.32126577]
[1717434025220,0.83555332,3771.1,3770.5,1.32126577]
[1717434025535,0.22121377,3771.1,3770.5,1.32126577]
[1717434025751,2.59618106,3771.0,3769.3,7.32]
[1717434026049,2.59618106,3771.0,3769.4,1.32126577]
[1717434026050,0.54971693,3770.1,3769.4,1.32126577]
[1717434026215,1.385097,3770.0,3769.4,1.32126577]
[1717434026410,0.95261437,3770.1,3769.4,1.32126577]
[1717434026609,0.83512238,3770.0,3769.4,1.32126577]
[1717434026813,4.03740216,3769.9,3769.4,1.32126577]
[1717434026996,2.65274,3769.7,3769.4,1.32126577]
[1717434027203,0.63101581,3769.6,3768.8,7.32]
[1717434027422,0.83503125,3769.5,3768.9,1.32126577]
[1717434027668,0.54971693,3769.6,3768.9,1.32126577]
[1717434027872,1.38450884,3769.6,3768.9,1.32126577]
[1717434028028,3.48768191,3769.5,3768.9,1.32126577]
[1717434028234,0.28241388,3769.4,3768.9,1.32126577]
[1717434028553,2.65289,3769.5,3768.9,1.32126577]
[1717434028727,3.05583744,3769.5,3768.9,1.32126577]
[1717434029440,3.05583744,3769.5,3768.3,1.734]
[1717434029441,3.05583744,3769.5,3768.3,9.054]
[1717434029644,3.05583744,3769.5,3768.4,4.32126577]
[1717434031448,2.65289,3769.5,3768.5,2.65356]
[1717434031643,2.65289,3769.5,3768.6,4.32126577]
[1717434034206,2.65289,3769.5,3768.7,2.65339]
[1717434034411,0.54971693,3769.8,3768.9,5.70853577]
[1717434034681,0.54971693,3770.0,3769.0,3.57085358]
[1717434034986,0.54971693,3770.2,3769.1,1.32126577]
[1717434035114,3.20412079,3770.1,3769.1,1.32126577]
[1717434035322,0.82563358,3770.0,3769.1,1.32126577]
[1717434035527,0.54361172,3770.0,3769.1,1.32126577]
[1717434035842,2.65259,3769.9,3769.1,1.32126577]
[1717434037480,2.65259,3769.9,3769.2,2.65306]
[1717434037672,2.65259,3769.9,3769.3,1.32126577]
[1717434040938,0.54971693,3770.2,3769.3,1.32126577]
[1717434041138,1.38386672,3770.2,3769.3,2.25716835]
[1717434041463,0.83422283,3770.1,3769.3,2.25716835]
[1717434041651,0.28218717,3770.0,3769.3,2.25716835]
[1717434041969,0.54971693,3770.2,3769.3,2.25716835]
[1717434042172,1.38385358,3770.2,3769.3,2.25716835]
[1717434042372,0.83413665,3770.1,3769.3,2.25716835]
[1717434042549,0.54971693,3770.2,3769.3,2.25716835]
[1717434042550,0.2821823,3770.0,3769.3,2.25716835]
[1717434042746,0.54971693,3770.2,3769.4,0.49102284]
[1717434042942,0.28221922,3770.2,3769.8,2.65265]
[1717434043135,0.54971693,3770.3,3769.8,2.65265]
[1717434043136,0.54971693,3770.3,3769.9,1.32126577]
[1717434043378,0.54971693,3770.5,3770.0,2.6525]
[1717434043577,0.54971693,3770.6,3770.1,1.71864235]
[1717434043749,0.54971693,3770.7,3770.2,2.65237]
[1717434043942,0.54971693,3770.9,3770.3,1.32126577]
[1717434044343,0.28229575,3770.8,3770.3,1.32126577]
[1717434044664,0.54971693,3771.0,3770.3,1.32126577]
[1717434044857,1.38448804,3771.0,3770.3,1.32126577]
[1717434045064,0.83477111,3770.9,3770.3,1.32126577]
[1717434045273,1.38448804,3770.9,3770.3,1.32126577]
[1717434045593,1.38448804,3770.8,3770.3,1.32126577]
[1717434045794,0.82686742,3771.0,3770.3,1.32126577]
[1717434045795,0.28237851,3770.7,3770.3,1.32126577]
[1717434045990,0.54971693,3770.8,3770.3,1.32126577]
[1717434046286,0.28247676,3770.7,3770.3,1.32126577]